Cogmind - Beta 11.1 @@@ ROGUE MODE // 2022.12.06 @ 14:12:53 Player: L1l7 Result: Destroyed by Y-45 Defender with Beam Rifle Performance ------------- Evolutions (2) 1000 Regions Visited (6) 1200 Robots Destroyed (27) 135 Value Destroyed (548) 548 Prototype IDs (1) 20 Alien Tech Used (0) 0 Bonus (300) 300 TOTAL SCORE: 3203 Bonus ------- Aligned with FarCom 300 Cogmind --------- Core Integrity 0/550 Matter 235/300 Energy 99/100 System Corruption 8% Temperature Cool (9) Movement Core (50) Location -8/Materials Parts ------- > --- POWER (2) -------- (None) > --- PROPULSION (4) --- (None) > --- UTILITY (3) ------ Advanced Visual Processing Unit > --- WEAPON (2) ------- Mini Grenade Launcher > --- INVENTORY (5) ---- Light Nuclear Core Core Analyzer Skeleton Box Chainsword Chainsword Peak State ------------ > --- POWER ------------ Light Deuterium Engine Light Nuclear Core > --- PROPULSION ------- Armored Huge Wheel Armored Huge Wheel > --- UTILITY ---------- Core Analyzer Propulsion Shielding Skeleton Box > --- WEAPON ----------- Gauss Rifle Chainsword > --- INVENTORY -------- Armored Huge Wheel Armored Huge Wheel Chainsword [Rating: 43] Favorites ----------- Power Light Ion Engine Engine Light Ion Engine Power Core Light Nuclear Core Propulsion Armored Huge Wheel Leg Aluminum Leg Wheel Armored Huge Wheel Flight Unit Flight Unit Utility Propulsion Shielding Device Skeleton Box Storage Medium Storage Unit Processor Core Analyzer Protection Propulsion Shielding Weapon Chainsword Energy Gun Medium Laser Ballistic Gun Light Assault Rifle Launcher Mini Grenade Launcher Slashing Weapon Chainsword Special Melee Weapon Improved Datajack Build | -11 -10 -9 -9 -9 -8 -8 ------- Run | Scr Mat Mat Min Exi Min Mat Slots Evolved 4 | . . 2 . . . 2 Power 1 | . . 1 . . . . Propulsion 2 | . . 1 . . . 1 Utility 1 | . . . . . . 1 Weapon . | . . . . . . . Parts Attached 40 | 7 2 5 3 1 . 22 Power 8 | 1 . 1 1 . . 5 Engine 6 | 1 . 1 1 . . 3 Core 2 | . . . . . . 2 Reactor . | . . . . . . . Propulsion 11 | 2 1 3 . . . 5 Treads . | . . . . . . . Leg 3 | 2 1 . . . . . Wheel 4 | . . . . . . 4 Hover . | . . . . . . . Flight 4 | . . 3 . . . 1 Utility 10 | 2 1 1 . 1 . 5 Device 4 | 2 1 . . 1 . . Storage 1 | . . . . . . 1 Processor 2 | . . . . . . 2 Hackware . | . . . . . . . Protection 3 | . . 1 . . . 2 Artifact . | . . . . . . . Weapon 11 | 2 . . 2 . . 7 Energy Gun 1 | 1 . . . . . . Energy Cannon . | . . . . . . . Ballistic Gun 5 | 1 . . 2 . . 2 Ballistic Cannon . | . . . . . . . Launcher 1 | . . . . . . 1 Special Weapon . | . . . . . . . Impact Weapon . | . . . . . . . Slashing Weapon 1 | . . . . . . 1 Piercing Weapon . | . . . . . . . Special Melee Weapon 3 | . . . . . . 3 Unidentified Prototypes 1 | . . . . 1 . . Parts Lost 15 | . 1 . 1 . . 13 Power 6 | . 1 . . . . 5 Propulsion 3 | . . . . . . 3 Utility 4 | . . . 1 . . 3 Weapon 2 | . . . . . . 2 Highest Loss Streak 7 | . 1 . 1 . . 7 To Critical Strikes . | . . . . . . . Average Slot Usage (%) 74 | . 99 85 87 95 100 66 Engine 10 | . 13 10 19 22 22 8 Core 1 | . . . . . . 2 Leg 3 | . 27 . . . . . Wheel 10 | . . . . . . 15 Flight 6 | . . 30 33 33 33 . Device 7 | . 28 12 1 7 11 3 Storage 3 | . . . . . . 5 Processor 5 | . . . . . . 7 Protection 6 | . . 9 11 11 11 7 Energy Gun 3 | . 14 11 8 . . . Ballistic Gun 8 | . 14 11 13 22 22 6 Slashing Weapon 6 | . . . . . . 8 Naked Turns . | . . . . . . . Heaviest Build 35 | 10 11 8 10 11 11 35 Greatest Support 56 | 20 20 20 12 12 12 56 Greatest Overweight (x) 4 | . . . . . . 4 Average Overweight (x) . | . . . . . . . Largest Inventory Capacity 10 | 5 5 5 5 5 5 10 Average Capacity 7 | 5 5 5 5 5 5 8 Most Carried 10 | 5 5 5 5 5 4 10 Average Carried 5 | 1 4 1 3 4 4 6 Final Capacity 5 | 5 5 5 5 5 5 5 Final Carried 5 | 2 5 2 5 4 4 5 Class Distribution -------------------- 82% | Mutant 17% | Scavenger-Mutant Dominant Class ---------------- Mutant | -10/Materials Scavenger-Mutant | -9/Materials Scavenger-Mutant | -9/Mines Scavenger-Mutant | -9/Exiles Scavenger-Mutant | -8/Mines Mutant | -8/Materials Resources | -11 -10 -9 -9 -9 -8 -8 ----------- Run | Scr Mat Mat Min Exi Min Mat Matter Collected 650 | 229 42 . 113 . . 266 Remotely . | . . . . . . . Salvage Created 845 | 140 42 . 143 . . 520 Parts 55 | 12 6 . 9 . . 28 Haulers Intercepted . | . . . . . . . Recyclers Shooed 2 | 1 . . 1 . . . Parts Field Recycled . | . . . . . . . Retrieved Matter . | . . . . . . . Parts Self-Destructed . | . . . . . . . Prevented . | . . . . . . . Kills | -11 -10 -9 -9 -9 -8 -8 ------- Run | Scr Mat Mat Min Exi Min Mat Combat Hostiles Destroyed 17 | . 3 . 3 . . 11 Melee 9 | . . . . . . 9 Guns 8 | . 3 . 3 . . 2 Classes Destroyed 9 | 2 1 . . . . 6 Worker 1 | . . . . . . 1 Builder 1 | . . . . . . 1 Tunneler 5 | 4 . . 1 . . . Recycler 2 | 1 . . 1 . . . Watcher 1 | . . . . . . 1 Swarmer 9 | . 3 . 3 . . 3 Grunt 5 | . . . . . . 5 Sentry 2 | . . . . . . 2 Hunter 1 | . . . . . . 1 Best Kill Streak 4 | 2 3 . 3 . . 4 Combat Bots Only 4 | . 3 . 3 . . 4 Max Kills in Single Turn 2 | 1 2 . 1 . . 1 Gunslinging 1 | . 1 . . . . . Exploded . | . . . . . . . Melee 1 | . . . . . . 1 Uniques/NPCs Destroyed . | . . . . . . . Combat | -11 -10 -9 -9 -9 -8 -8 -------- Run | Scr Mat Mat Min Exi Min Mat Damage Taken 3064 | . 267 10 55 . . 2732 Core 599 | . 31 10 . . . 558 Absorbed by Shields . | . . . . . . . Redirected to Shielding 28 | . . . 2 . . 26 Regen/Repaired (Parts) 10 | . 10 . . . . . Core Remaining (%) 94 | 100 87 . . . 97 . Volleys Fired 50 | 15 9 1 15 . . 10 Largest 2 | 2 2 2 2 . . 1 Hottest 70 | 70 70 70 70 . . 30 Shots Fired 91 | 30 18 2 30 . . 11 Gun 89 | 30 18 2 30 . . 9 Cannon . | . . . . . . . Launcher 2 | . . . . . . 2 Special . | . . . . . . . Kinetic 49 | 15 9 1 15 . . 9 Thermal 40 | 15 9 1 15 . . . Explosive 2 | . . . . . . 2 Electromagnetic . | . . . . . . . Robot Hit Streak 6 | 5 2 3 5 . . 6 Robot Miss Streak 4 | 3 4 1 2 . . 2 Penetration Max . | . . . . . . . Secondary Targets 3 | . 1 . 2 . . . Max Gunslinging Chain 1 | . 1 . 1 . . . Shots Hit Robots 87 | 17 5 1 20 . . 44 Core Hits 36 | 8 3 1 7 . . 17 Critical Kills . | . . . . . . . Critical Parts Destroyed . | . . . . . . . Critical Strikes 8 | 2 . . 1 . . 5 Burn 3 | 2 . . 1 . . . Sever 5 | . . . . . . 5 Melee Attacks 77 | . . . . . . 77 Impact . | . . . . . . . Slashing 75 | . . . . . . 75 Piercing . | . . . . . . . Sneak Attacks 3 | . . . . . . 3 Combat Hostiles . | . . . . . . . Follow-up Attacks . | . . . . . . . Damage Inflicted 1905 | 176 49 13 192 . . 1475 Guns 519 | 172 49 13 192 . . 93 Cannons . | . . . . . . . Explosions 79 | . . . . . . 79 Melee 1303 | . . . . . . 1303 Ramming 4 | 4 . . . . . . Kinetic 241 | 72 23 . 53 . . 93 Thermal 278 | 100 26 13 139 . . . Explosive 79 | . . . . . . 79 Electromagnetic . | . . . . . . . Impact . | . . . . . . . Slashing 1303 | . . . . . . 1303 Piercing . | . . . . . . . Highest Corruption 8 | . . . . . . 8 Average Corruption 3 | . . . . . . 3 Corruption Purged . | . . . . . . . Corruption Blocked . | . . . . . . . Effects 28 | . . . . . . 28 Message Errors 11 | . . . . . . 11 Matter Fused 9 | . . . . . . 9 Heat Flow Errors 3 | . . . . . . 3 Energy Discharges 3 | . . . . . . 3 Data Loss (major) 1 | . . . . . . 1 Misfires 1 | . . . . . . 1 Overload Shots . | . . . . . . . Overflow Damage 40 | . . . . . . 40 Projectiles . | . . . . . . . Explosions . | . . . . . . . Melee 40 | . . . . . . 40 Knockbacks . | . . . . . . . Impact . | . . . . . . . Kinetic . | . . . . . . . Secondary . | . . . . . . . Self-Inflicted Damage . | . . . . . . . Shots . | . . . . . . . Rammed . | . . . . . . . Targets Rammed 1 | 1 . . . . . . Kicked 1 | 1 . . . . . . Crushed . | . . . . . . . Highest Temperature 215 | 70 150 14 157 . . 215 Average Temperature 61 | 25 81 10 71 . . 68 Received Heat Transfer 798 | . 18 6 . . . 774 Siege Activations . | . . . . . . . Robots Corrupted . | . . . . . . . Combat Hostiles . | . . . . . . . Parts Fried . | . . . . . . . Impact Corruptions . | . . . . . . . Robots Melted . | . . . . . . . Combat Hostiles . | . . . . . . . Parts Melted 2 | 1 . . 1 . . . Heat Transferred 1036 | 444 74 37 481 . . . Parts Sabotaged . | . . . . . . . Parts Stolen . | . . . . . . . Parts Stripped . | . . . . . . . Power Chain Reactions . | . . . . . . . Missiles Intercepted . | . . . . . . . Alert | -11 -10 -9 -9 -9 -8 -8 ------- Run | Scr Mat Mat Min Exi Min Mat Peak Influence 196 | 25 98 42 116 . . 196 Initial 22 | . 16 22 16 . . . Average 67 | 13 34 23 99 . . 82 Maximum Alert Level . | . . . . . . . Low Security (%) 100 | 100 100 100 100 . 100 100 Level 1 . | . . . . . . . Level 2 . | . . . . . . . Level 3 . | . . . . . . . Level 4 . | . . . . . . . Level 5 . | . . . . . . . High Security . | . . . . . . . Max Security . | . . . . . . . Squads Dispatched 7 | . . 1 . . . 6 Investigation 1 | . . . . . . 1 Extermination . | . . . . . . . Reinforcement 6 | . . 1 . . . 5 Assault . | . . . . . . . Garrison . | . . . . . . . Intercept . | . . . . . . . Searches Triggered . | . . . . . . . Construction Impeded . | . . . . . . . Haulers Reinforced . | . . . . . . . Active Scanning Responses . | . . . . . . . Cargo Convoy Interrupts . | . . . . . . . Stealth | -11 -10 -9 -9 -9 -8 -8 --------- Run | Scr Mat Mat Min Exi Min Mat Distress Signals 4 | . 2 . . . . 2 Communications Jammed . | . . . . . . . Distress Signals . | . . . . . . . Times Spotted 61 | . 10 8 4 . 3 36 Peak Tracking Total 11 | . 5 6 3 . 3 11 Tactical Retreats 9 | . 2 1 1 . . 5 Traps | -11 -10 -9 -9 -9 -8 -8 ------- Run | Scr Mat Mat Min Exi Min Mat Traps Triggered . | . . . . . . . Indirectly . | . . . . . . . Trap Hack Attempts . | . . . . . . . Triggered . | . . . . . . . Disarmed . | . . . . . . . Reprogrammed . | . . . . . . . Reused . | . . . . . . . Traps Extracted . | . . . . . . . Installed . | . . . . . . . Triggered . | . . . . . . . Machines | -11 -10 -9 -9 -9 -8 -8 ---------- Run | Scr Mat Mat Min Exi Min Mat Machines Disabled . | . . . . . . . Max in Single Turn . | . . . . . . . Machines Sabotaged . | . . . . . . . Garrisons Compromised . | . . . . . . . Overloaded Fab Kills . | . . . . . . . Hacking | -11 -10 -9 -9 -9 -8 -8 --------- Run | Scr Mat Mat Min Exi Min Mat Machines Accessed 12 | . 6 1 . 1 . 4 Terminals 9 | . 4 1 . . . 4 Fabricators . | . . . . . . . Repair Stations 1 | . 1 . . . . . Recycling Units 1 | . 1 . . . . . Scanalyzers . | . . . . . . . Garrison Access . | . . . . . . . Total Hacks 28 | . 11 3 . 4 . 10 Successful 16 | . 6 2 . 4 . 4 Failed 12 | . 5 1 . . . 6 Catastrophic 1 | . 1 . . . . . Database Lockouts . | . . . . . . . Manual 1 | . . . . 1 . . Terminals 21 | . 8 3 . . . 10 Fabricators . | . . . . . . . Repair Stations 2 | . 2 . . . . . Recycling Units 1 | . 1 . . . . . Scanalyzers . | . . . . . . . Garrison Access . | . . . . . . . Terminal Hacks 14 | . 4 2 . 4 . 4 Record 5 | . 1 . . 4 . . Branch Access Points 1 | . . . . . . 1 Emergency Access Points 1 | . 1 . . . . . Alert Level 3 | . 1 . . . . 2 Unreport Threat 1 | . 1 . . . . . Investigation Status 1 | . . 1 . . . . Recall Investigation 1 | . . 1 . . . . Recall Reinforcements 1 | . . . . . . 1 Fabricator Hacks . | . . . . . . . Repair Station Hacks 2 | . 2 . . . . . Scan Component 1 | . 1 . . . . . Repair 1 | . 1 . . . . . Recycling Unit Hacks . | . . . . . . . Scanalyzer . | . . . . . . . Garrison Access Hacks . | . . . . . . . Unauthorized Hacks . | . . . . . . . Terminals . | . . . . . . . Fabricators . | . . . . . . . Repair Stations . | . . . . . . . Recycling Units . | . . . . . . . Scanalyzers . | . . . . . . . Garrison Access . | . . . . . . . Data Cores Recovered . | . . . . . . . Used . | . . . . . . . Hacking Detections 5 | . 3 . . . . 2 Full Trace Events 3 | . 1 . . . . 2 Feedback Events . | . . . . . . . Feedback Blocked . | . . . . . . . Robot Schematics Acquired . | . . . . . . . Robots Built . | . . . . . . . Authchips . | . . . . . . . Time . | . . . . . . . Total Robot Build Rating . | . . . . . . . Part Schematics Acquired . | . . . . . . . Parts Built . | . . . . . . . Authchips . | . . . . . . . Time . | . . . . . . . Total Part Build Rating . | . . . . . . . Parts Repaired 1 | . 1 . . . . . Time 26 | . 26 . . . . . Parts Recycled . | . . . . . . . Recycled Matter . | . . . . . . . Retrieved Matter . | . . . . . . . Retrieved Components . | . . . . . . . Parts Scanalyzed . | . . . . . . . Part Schematics Acquired . | . . . . . . . Parts Damaged . | . . . . . . . Bothacking | -11 -10 -9 -9 -9 -8 -8 ------------ Run | Scr Mat Mat Min Exi Min Mat Used RIF Installer . | . . . . . . . Robots Hacked 1 | . . . . . . 1 Non-combat . | . . . . . . . Combat 1 | . . . . . . 1 Robot Hacks Applied 1 | . . . . . . 1 parse_system 1 | . . . . . . 1 Relay Couplers Released . | . . . . . . . Fabnet Peak Effective % . | . . . . . . . Robots Rewired . | . . . . . . . Allies Hacked . | . . . . . . . Hacks Repelled . | . . . . . . . Allies | -11 -10 -9 -9 -9 -8 -8 -------- Run | Scr Mat Mat Min Exi Min Mat Total Allies . | . . . . . . . Largest Group . | . . . . . . . Highest-Rated Group . | . . . . . . . Highest-Rated Ally . | . . . . . . . Total Orders . | . . . . . . . Ally Attacks . | . . . . . . . Total Damage . | . . . . . . . Kills . | . . . . . . . Allies Corrupted . | . . . . . . . Allies Melted . | . . . . . . . Intel | -11 -10 -9 -9 -9 -8 -8 ------- Run | Scr Mat Mat Min Exi Min Mat Robot Analysis Total . | . . . . . . . Derelict Logs Recovered . | . . . . . . . Drone Launches . | . . . . . . . Drone Recoveries . | . . . . . . . Exploration | -11 -10 -9 -9 -9 -8 -8 ------------- Run | Scr Mat Mat Min Exi Min Mat Turns Passed 5295 | 234 614 524 160 220 25 3518 Spaces Moved 2998 | 159 336 370 304 640 72 1117 Core 44 | 22 . . . . . 22 Treads . | . . . . . . . Legs 485 | 137 336 12 . . . . Wheels 1024 | . . . . . . 1024 Hover . | . . . . . . . Flight 1445 | . . 358 304 640 72 71 Fastest Speed 31 | 50 120 34 34 34 34 31 Average Speed 71 | 110 120 36 34 34 34 95 Slowest Speed 250 | 120 120 120 34 34 34 250 Overloaded Moves . | . . . . . . . Propulsion Burnouts . | . . . . . . . Robots Hopped 10 | . . 3 5 . 2 . Cave-ins Triggered 2 | . . . . . . 2 Exploration Rate (%) 37 | 8 43 17 40 91 26 34 Regions Visited 6 Branch Regions 3 Pre-discovered Areas . | . . . . . . . Known Exits Taken . | . . . . . . . Unknown Exits Taken 6 | 1 1 1 1 1 1 . Scrap Searched 1 | . . . 1 . . . Spaces Dug 29 | . . . . . . 29 Terrain Destroyed 42 | . . . . . . 42 Melee 29 | . . . . . . 29 Projectile . | . . . . . . . AOE 13 | . . . . . . 13 Terrain Rammed . | . . . . . . . Walls Destroyed . | . . . . . . . Machines Disabled . | . . . . . . . Actions | -11 -10 -9 -9 -9 -8 -8 --------- Run | Scr Mat Mat Min Exi Min Mat Total 5968 | 190 533 753 327 642 69 3454 Wait 2724 | . 171 376 5 . . 2172 Move 2972 | 158 335 363 294 639 67 1116 Hop 9 | . . 3 4 . 2 . Pick Up 58 | 9 10 2 5 1 . 31 Fast Attach . | . . . . . . . Attach 35 | 7 1 5 2 1 . 19 Detach 1 | . . . . . . 1 Swap 5 | . 1 . 1 . . 3 Drop 35 | . 6 3 1 1 . 24 Fire 50 | 15 9 1 15 . . 10 Melee 77 | . . . . . . 77 Ram . | . . . . . . . Kick 1 | 1 . . . . . . Crush . | . . . . . . . Escape Stasis 1 | . . . . . . 1 Rewire . | . . . . . . . Trap . | . . . . . . . Miscellaneous . | . . . . . . . Route ------- -11/Scrapyard -10/Materials -9/Materials -9/Mines -9/Exiles (discovered 2 exits: [*Min x2]) -8/Mines -8/Materials History --------- Turn | Location | Event 7 | -11/Scrapyard | Discovered new exit (range 15) 235 | -11/Scrapyard | Entered Materials 316 | -10/Materials | Build established: Mutant 599 | -10/Materials | Discovered new exit (range 15) 659 | -10/Materials | Repaired Flight Unit 849 | -10/Materials | Entered another Materials area 849 | -9/Materials | Evolved 2 slots: Power x1, Propulsion x1 1159 | -9/Materials | Build established: Scavenger-Mutant 1367 | -9/Materials | Discovered new exit (range 16) 1373 | -9/Materials | Entered Mines 1530 | -9/Mines | Deemed a non-threat by the Exiles lab entrance 1530 | -9/Mines | Discovered new exit (range 5) 1533 | -9/Mines | Entered Exiles 1543 | -9/Exiles | Met 8R-AWN 1550 | -9/Exiles | Met EX-HEX 1573 | -9/Exiles | Met EX-BIN 1590 | -9/Exiles | Aligned with FarCom system 1590 | -9/Exiles | Given EX-Vault access code 1608 | -9/Exiles | Opened EX-Vault 1611 | -9/Exiles | Found Prototype Device 1612 | -9/Exiles | Identified Skeleton Box 1620 | -9/Exiles | Warned to stay clear of 0b10 Research branches 1633 | -9/Exiles | Met EX-DEC 1655 | -9/Exiles | Discovered new exit (range 10) 1680 | -9/Exiles | Visited The Gauntlet 1749 | -9/Exiles | Discovered new exit (range 14) 1753 | -9/Exiles | Left Exiles lab with Skeleton Box 1753 | -9/Exiles | Entered Mines 1774 | -8/Mines | Discovered new exit (range 10) 1778 | -8/Mines | Entered Materials 1778 | -8/Materials | Evolved 2 slots: Propulsion x1, Utility x1 2074 | -8/Materials | Build established: Mutant 3671 | -8/Materials | Crushed by falling debris 4275 | -8/Materials | Core integrity fell below 50% 4308 | -8/Materials | Core integrity fell below 20% 4310 | -8/Materials | Lost 7 parts (2p2n2u1w) 5276 | -8/Materials | Crushed by falling debris 5296 | -8/Materials | Destroyed by Y-45 Defender with Beam Rifle Last Messages --------------- System corrupted: Heat flow error (+233). %13%L2CE9H8LBZM2DN2DF44VT2K5 V3SPP System corrupted: Energy discharge (-31). System corrupted: Matter fused (-10). System corrupted: Heat flow error (+246). S/FTU2X66 90W#MDU,4>94MH3YP,#D The unstable cave ceiling collapses. Arm. Huge Wheel destroyed. The unstable cave ceiling collapses. Crushed by falling debris. Chainsword destroyed. System corrupted by crushing effect (+5). Critical hit (Burn: +37). U-05 Engineer builds a Wall. Acquired Mni. Grenade Launcher. BJ9:/X%N5S,FZ<=I%RGLAGN5SAB|PNW,7ZGGIR Critical hit (Burn: +37). Med. Storage Unit destroyed. U-05 Engineer lays Concrete. U-05 Engineer destroyed. Map ----- +----------------------------------------------------+ | ?????????????????????????????????????????????????# | | ????????????????????????????????????????????????## | | ????????????????????????????????????????????????# | | ????????????????????????????????????????????????# | | ????????????????????????????????????????????????## | | ?????????????????????????????????????????????????? | | ?????????????????????????????????????????#######?? | | ?????????????????????????????????????????# #?? | | ?????????????????????????????????????????# #?? | | ?????????????????????????????????????????+ #?? | | ?????????????????????????????????????????? #?? | | ???????????????????????????#?????????????? ??? | | ???????????????????????????# ?????????????# #### | | ???????????????????????????+ ????????????# ## | | ?????????????????????????####+#####???????# ## | | ?????????????????????????# ######### ## | | ?????????????????????????# ### ## ##/ | | ?????????????????????????# / ######### #### | | ?????????????????????????# !! #?????### #T## | | ?????????????????????????# ! !! #??????## | | ????????????????????????## Y! #???????# | | ????????????????????????# *%= #???????# | | ????????????????????????# ! #???????######## | | ????????????????????????# #??????????????? | | ????????????????????????# ######??????????????? | | ????????????????????????#@ #??????????????????? | | ????????????????????????### ##??????????????????? | | ??????????????????????????####???????????????????? | | ?????????????????????????????????????????????????? | | ?????????????????????????????????????????????????? | | ?????????????????????????????????????????????????? | | ?????????????????????????????????????????????????? | | | | | | | | | | | | | | | | | | | | | | | | | | | | | | | | | | | | | +----------------------------------------------------+ Best States ------------- Heat Dissipation 31 Energy Generation 23 Energy Capacity 250 Matter Stores 300 Matter Capacity 300 Sight Range 20 Terrain Scan Range 16 Terrain Scan Density 10 ECM Strength 1 Armor Coverage 375 Propulsion Shielding 33 Evasion (%) 63 Core Analysis 6 Item Schematics ----------------- None Robot Schematics ------------------ None Fabricated ------------ Nothing Alien Tech Used ----------------- None Achievements -------------- Slippery One Challenges ------------ None Game ------ Seed DataSpectralReplicator Manual? 0 Play Time 00:51:50 Cumulative 12.4 hours Start 2022.12.06 @ 12:23:53 End 2022.12.06 @ 14:12:53 Sessions 1 Manual Loads 0 Difficulty Rogue Special Mode None Game No. 21 Rogue 21 Adventurer 0 Explorer 0 Win Type - Total 0 Types 0/0/0/0/0/0/0/0/0 Lore% 15 Gallery% 15 Achievement% 16 Wizard Run 0 Options --------- ASCII 0 Keyboard 0 Movement Arrows Keybinds 0 Fullscreen 2 Font 16/SmallcapsGlow Map View 76x50 Tactical HUD 0 Map Filters NONE Filters NONE Steam 1 RUN: 6573d546-1888-416e-a1be-a0d50401976d